[Event "*** Titled Tuesday Blitz"]
[Site "Chess.com"]
[Date "2020.12.29"]
[Round "5"]
[White "kleopl"]
[Black "Blitzking642"]
[Result "1-0"]
[WhiteElo "2458"]
[BlackElo "2294"]
[TimeControl "180+1"]
[EndTime "10:55:30 PST"]
[Termination "kleopl won by resignation"]

1. c4 {[%clk 0:03:00.9]} 1... c5 {[%clk 0:02:59.1]} 2. Nf3 {[%clk 0:03:00.5]}
2... Nc6 {[%clk 0:02:59.6]} 3. Nc3 {[%clk 0:02:59.3]} 3... g6 {[%clk 0:02:59.5]}
4. e3 {[%clk 0:02:58]} 4... Nf6 {[%clk 0:02:58.4]} 5. d4 {[%clk 0:02:55.4]} 5...
cxd4 {[%clk 0:02:57.9]} 6. exd4 {[%clk 0:02:56.3]} 6... d5 {[%clk 0:02:57.4]} 7.
Bg5 {[%clk 0:02:56.3]} 7... Ne4 {[%clk 0:02:32.4]} 8. cxd5 {[%clk 0:01:58.3]}
8... Nxc3 {[%clk 0:02:30.4]} 9. bxc3 {[%clk 0:01:59.2]} 9... Qxd5 {[%clk
0:02:29.9]} 10. Qb3 {[%clk 0:01:53]} 10... Qe4+ {[%clk 0:02:04]} 11. Be3 {[%clk
0:01:52.5]} 11... Bg7 {[%clk 0:01:59.8]} 12. Qxf7+ {[%clk 0:01:51]} 12... Kxf7
{[%clk 0:01:56.3]} 13. Ng5+ {[%clk 0:01:51.1]} 13... Ke8 {[%clk 0:01:54.1]} 14.
Nxe4 {[%clk 0:01:52]} 14... Bf5 {[%clk 0:01:52.5]} 15. Ng3 {[%clk 0:01:48.8]}
15... Be6 {[%clk 0:01:49.8]} 16. Be2 {[%clk 0:01:45.9]} 16... Rc8 {[%clk
0:01:50.2]} 17. O-O {[%clk 0:01:41.2]} 17... Na5 {[%clk 0:01:50.2]} 18. Rfc1
{[%clk 0:01:40.9]} 18... Bd5 {[%clk 0:01:48.6]} 19. Nf1 {[%clk 0:01:35.8]} 19...
e5 {[%clk 0:01:44]} 20. Nd2 {[%clk 0:01:32.2]} 20... exd4 {[%clk 0:01:43.5]} 21.
cxd4 {[%clk 0:01:32.1]} 21... Kf7 {[%clk 0:01:41.4]} 22. Bf3 {[%clk 0:01:27.5]}
22... Ke6 {[%clk 0:01:31.5]} 23. Bxd5+ {[%clk 0:01:25.8]} 23... Kxd5 {[%clk
0:01:31.3]} 24. Nf3 {[%clk 0:01:21.4]} 24... Nc4 {[%clk 0:01:28.9]} 25. Rab1
{[%clk 0:01:15.9]} 25... Nxe3 {[%clk 0:01:17.4]} 26. fxe3 {[%clk 0:01:15.7]}
26... Rxc1+ {[%clk 0:01:09.3]} 27. Rxc1 {[%clk 0:01:15.5]} 27... Bh6 {[%clk
0:01:05.9]} 28. Kf2 {[%clk 0:01:11.4]} 28... Re8 {[%clk 0:01:04.2]} 29. Rc3
{[%clk 0:00:56.9]} 29... b5 {[%clk 0:00:59.2]} 30. Ne5 {[%clk 0:00:55.2]} 30...
Ke4 {[%clk 0:00:50.3]} 31. Ke2 {[%clk 0:00:42.6]} 31... b4 {[%clk 0:00:47.9]}
32. Rd3 {[%clk 0:00:35.2]} 32... Rc8 {[%clk 0:00:44.1]} 33. Ng4 {[%clk
0:00:34.5]} 33... Bg7 {[%clk 0:00:32.9]} 34. Nf2+ {[%clk 0:00:34.2]} 34... Kd5
{[%clk 0:00:33.4]} 35. e4+ {[%clk 0:00:34.5]} 35... Kc4 {[%clk 0:00:33.4]} 36.
d5 {[%clk 0:00:34.7]} 36... a5 {[%clk 0:00:30.2]} 37. Rd1 {[%clk 0:00:34.6]}
37... Kb5 {[%clk 0:00:26.2]} 38. Kd3 {[%clk 0:00:30.3]} 38... Rc3+ {[%clk
0:00:25.1]} 39. Ke2 {[%clk 0:00:30]} 39... Rc8 {[%clk 0:00:22.7]} 40. Ng4 {[%clk
0:00:27.4]} 40... a4 {[%clk 0:00:21.1]} 41. e5 {[%clk 0:00:26.7]} 41... Bxe5
{[%clk 0:00:16.6]} 42. Nxe5 {[%clk 0:00:26.6]} 42... Re8 {[%clk 0:00:17]} 43. d6
{[%clk 0:00:24.9]} 43... Rxe5+ {[%clk 0:00:17]} 44. Kf3 {[%clk 0:00:24.9]} 44...
Re8 {[%clk 0:00:17.5]} 45. d7 {[%clk 0:00:24.1]} 45... Rd8 {[%clk 0:00:17.5]}
46. Ke4 {[%clk 0:00:15.4]} 46... b3 {[%clk 0:00:16.7]} 47. axb3 {[%clk
0:00:15.2]} 47... axb3 {[%clk 0:00:17.6]} 48. Ke5 {[%clk 0:00:12.5]} 48... b2
{[%clk 0:00:09.8]} 49. Ke6 {[%clk 0:00:12.6]} 49... Kc4 {[%clk 0:00:07.4]} 50.
Ke7 {[%clk 0:00:12.2]} 50... Rb8 {[%clk 0:00:05.4]} 51. d8=Q {[%clk 0:00:11.8]}
51... Rxd8 {[%clk 0:00:04.6]} 52. Kxd8 {[%clk 0:00:12.7]} 52... Kc3 {[%clk
0:00:04.8]} 53. Ke7 {[%clk 0:00:12.9]} 53... Kc2 {[%clk 0:00:04.1]} 54. Rf1
{[%clk 0:00:13.1]} 54... b1=Q {[%clk 0:00:03.9]} 55. Rxb1 {[%clk 0:00:13.3]}
55... Kxb1 {[%clk 0:00:04.8]} 56. Kf6 {[%clk 0:00:13.8]} 56... Kc2 {[%clk
0:00:05.3]} 57. Kg7 {[%clk 0:00:14.1]} 57... Kd3 {[%clk 0:00:05.8]} 58. Kxh7
{[%clk 0:00:14.5]} 58... g5 {[%clk 0:00:06.7]} 59. Kg6 {[%clk 0:00:14.6]} 59...
Ke4 {[%clk 0:00:07.6]} 60. Kxg5 {[%clk 0:00:14.7]} 1-0

[Event "*** Titled Tuesday Blitz"]
[Site "Chess.com"]
[Date "2020.12.29"]
[Round "5"]
[White "Mikhail_Golubev"]
[Black "Sjakkerntobi"]
[Result "1-0"]
[WhiteElo "2503"]
[BlackElo "2323"]
[TimeControl "180+1"]
[EndTime "10:55:32 PST"]
[Termination "Mikhail_Golubev won by resignation"]

1. e4 {[%clk 0:03:00.9]} 1... e6 {[%clk 0:03:00.2]} 2. d4 {[%clk 0:03:00]} 2...
d5 {[%clk 0:03:00.9]} 3. Nc3 {[%clk 0:03:00]} 3... Bb4 {[%clk 0:03:00.4]} 4. e5
{[%clk 0:03:00]} 4... Ne7 {[%clk 0:03:00.2]} 5. a3 {[%clk 0:03:00.1]} 5... Bxc3+
{[%clk 0:03:01]} 6. bxc3 {[%clk 0:03:00.4]} 6... c5 {[%clk 0:03:01.9]} 7. a4
{[%clk 0:02:59.4]} 7... Qc7 {[%clk 0:02:57.7]} 8. Nf3 {[%clk 0:02:57.4]} 8... b6
{[%clk 0:02:48.2]} 9. Bb5+ {[%clk 0:02:56.7]} 9... Nd7 {[%clk 0:02:45.8]} 10.
O-O {[%clk 0:02:48.4]} 10... h6 {[%clk 0:02:41.3]} 11. a5 {[%clk 0:02:36.6]}
11... Bb7 {[%clk 0:02:25.4]} 12. axb6 {[%clk 0:02:22]} 12... axb6 {[%clk
0:02:26.3]} 13. Rxa8+ {[%clk 0:02:21]} 13... Bxa8 {[%clk 0:02:22.8]} 14. c4
{[%clk 0:01:49.7]} 14... O-O {[%clk 0:02:16.7]} 15. cxd5 {[%clk 0:01:44.4]}
15... Nxd5 {[%clk 0:02:11.8]} 16. Bd3 {[%clk 0:00:59.4]} 16... c4 {[%clk
0:01:52.4]} 17. Be2 {[%clk 0:00:37.9]} 17... b5 {[%clk 0:01:48.3]} 18. Nd2
{[%clk 0:00:29.7]} 18... Nc3 {[%clk 0:01:34.1]} 19. Qe1 {[%clk 0:00:29.7]} 19...
Nxe2+ {[%clk 0:01:33.9]} 20. Qxe2 {[%clk 0:00:30.6]} 20... Nb6 {[%clk
0:01:19.2]} 21. Qg4 {[%clk 0:00:28.9]} 21... Nd5 {[%clk 0:01:03.8]} 22. Ne4
{[%clk 0:00:27.6]} 22... Kh8 {[%clk 0:00:52]} 23. Qh4 {[%clk 0:00:27.1]} 23...
Qe7 {[%clk 0:00:47.9]} 24. Bg5 {[%clk 0:00:25.9]} 24... f6 {[%clk 0:00:31.1]}
25. exf6 {[%clk 0:00:24.3]} 25... Nxf6 {[%clk 0:00:27.2]} 26. Nxf6 {[%clk
0:00:16]} 26... gxf6 {[%clk 0:00:25.2]} 27. Qxh6+ {[%clk 0:00:14.5]} 27... Kg8
{[%clk 0:00:24]} 28. Be3 {[%clk 0:00:11.9]} 28... Rf7 {[%clk 0:00:18.6]} 29. Ra1
{[%clk 0:00:10.5]} 29... Bd5 {[%clk 0:00:18.5]} 30. f3 {[%clk 0:00:10.3]} 30...
Rg7 {[%clk 0:00:17.3]} 31. Kf2 {[%clk 0:00:09.7]} 31... Qc7 {[%clk 0:00:10.7]}
32. Qf4 {[%clk 0:00:08.9]} 32... e5 {[%clk 0:00:09.7]} 33. Qxf6 {[%clk
0:00:07.2]} 33... Rf7 {[%clk 0:00:07.3]} 34. Qxe5 {[%clk 0:00:06.6]} 34... Qb7
{[%clk 0:00:02.8]} 35. Bf4 {[%clk 0:00:06.1]} 35... Bc6 {[%clk 0:00:02.2]} 36.
h4 {[%clk 0:00:06.1]} 36... Bd5 {[%clk 0:00:02.4]} 37. h5 {[%clk 0:00:06.2]}
37... Qd7 {[%clk 0:00:01.9]} 38. Qg5+ {[%clk 0:00:05.4]} 38... Rg7 {[%clk
0:00:02.1]} 39. Qf6 {[%clk 0:00:05.1]} 39... Rf7 {[%clk 0:00:02.5]} 40. Qe5
{[%clk 0:00:05]} 40... Re7 {[%clk 0:00:02.7]} 41. Qb8+ {[%clk 0:00:04.5]} 41...
Kf7 {[%clk 0:00:02.4]} 42. Qd6 {[%clk 0:00:04.9]} 42... Qxd6 {[%clk 0:00:01.7]}
43. Bxd6 {[%clk 0:00:04.9]} 43... Rd7 {[%clk 0:00:02]} 44. Be5 {[%clk
0:00:04.9]} 44... b4 {[%clk 0:00:02.5]} 45. Rb1 {[%clk 0:00:04.9]} 45... b3
{[%clk 0:00:03.1]} 46. cxb3 {[%clk 0:00:03.2]} 46... cxb3 {[%clk 0:00:04]} 47.
g4 {[%clk 0:00:03.4]} 47... Rb7 {[%clk 0:00:03.5]} 48. g5 {[%clk 0:00:03.7]}
48... b2 {[%clk 0:00:03.9]} 49. g6+ {[%clk 0:00:03.6]} 49... Kg8 {[%clk
0:00:04.3]} 50. h6 {[%clk 0:00:03.8]} 50... Kf8 {[%clk 0:00:02.6]} 51. h7 {[%clk
0:00:04.4]} 1-0

[Event "*** Titled Tuesday Blitz"]
[Site "Chess.com"]
[Date "2020.12.29"]
[Round "5"]
[White "chess4life23"]
[Black "ambaixador"]
[Result "0-1"]
[WhiteElo "2238"]
[BlackElo "2419"]
[TimeControl "180+1"]
[EndTime "10:55:38 PST"]
[Termination "ambaixador won on time"]

1. d4 {[%clk 0:03:00.9]} 1... Nf6 {[%clk 0:02:59.1]} 2. c4 {[%clk 0:02:59.4]}
2... g6 {[%clk 0:02:59]} 3. Nc3 {[%clk 0:02:58.6]} 3... Bg7 {[%clk 0:02:59.1]}
4. e4 {[%clk 0:02:58.7]} 4... d6 {[%clk 0:02:59.4]} 5. Be2 {[%clk 0:02:59.2]}
5... O-O {[%clk 0:02:59.3]} 6. Nf3 {[%clk 0:02:59.8]} 6... Nbd7 {[%clk
0:02:57.9]} 7. O-O {[%clk 0:03:00.2]} 7... e5 {[%clk 0:02:57.8]} 8. Re1 {[%clk
0:02:59.7]} 8... a6 {[%clk 0:02:45]} 9. Bf1 {[%clk 0:02:55.1]} 9... Rb8 {[%clk
0:02:30.5]} 10. Qc2 {[%clk 0:02:30.6]} 10... Re8 {[%clk 0:02:23.1]} 11. h3
{[%clk 0:01:54.7]} 11... exd4 {[%clk 0:01:52.3]} 12. Nxd4 {[%clk 0:01:53.9]}
12... Nc5 {[%clk 0:01:53.2]} 13. Bg5 {[%clk 0:01:38.2]} 13... Ne6 {[%clk
0:01:20.6]} 14. Nxe6 {[%clk 0:01:30.1]} 14... Rxe6 {[%clk 0:01:21.5]} 15. Rad1
{[%clk 0:01:26.9]} 15... h6 {[%clk 0:00:52.6]} 16. Bh4 {[%clk 0:01:26]} 16... g5
{[%clk 0:00:51.6]} 17. Bg3 {[%clk 0:01:25.9]} 17... Nh5 {[%clk 0:00:51.2]} 18.
Bh2 {[%clk 0:01:24.8]} 18... Bd7 {[%clk 0:00:42.5]} 19. Nd5 {[%clk 0:01:17]}
19... Bc6 {[%clk 0:00:30.7]} 20. g4 {[%clk 0:00:57.9]} 20... Nf6 {[%clk
0:00:28.9]} 21. e5 {[%clk 0:00:45.7]} 21... Ne8 {[%clk 0:00:22.1]} 22. f4 {[%clk
0:00:32.6]} 22... gxf4 {[%clk 0:00:18.9]} 23. Nxf4 {[%clk 0:00:33.5]} 23... Rxe5
{[%clk 0:00:18]} 24. Nh5 {[%clk 0:00:23.7]} 24... Rxe1 {[%clk 0:00:16]} 25. Rxe1
{[%clk 0:00:24.6]} 25... Qg5 {[%clk 0:00:14.8]} 26. Qf2 {[%clk 0:00:20.4]} 26...
Nf6 {[%clk 0:00:13]} 27. Bf4 {[%clk 0:00:15.9]} 27... Qc5 {[%clk 0:00:12.6]} 28.
Be3 {[%clk 0:00:15.2]} 28... Qb4 {[%clk 0:00:07]} 29. Nxf6+ {[%clk 0:00:14.5]}
29... Bxf6 {[%clk 0:00:07.9]} 30. Bxh6 {[%clk 0:00:06.3]} 30... Qc5 {[%clk
0:00:06.7]} 31. Be3 {[%clk 0:00:06]} 31... Qe5 {[%clk 0:00:06.2]} 32. Bf4 {[%clk
0:00:02.4]} 32... Qd4 {[%clk 0:00:05.7]} 33. g5 {[%clk 0:00:02.7]} 33... Qxf2+
{[%clk 0:00:05.5]} 34. Kxf2 {[%clk 0:00:03.6]} 34... Bxb2 {[%clk 0:00:06.2]} 35.
Be3 {[%clk 0:00:02.9]} 35... Bc3 {[%clk 0:00:06.1]} 36. Rc1 {[%clk 0:00:02.7]}
36... Be5 {[%clk 0:00:07]} 37. h4 {[%clk 0:00:03]} 37... Re8 {[%clk 0:00:07.2]}
38. Bd3 {[%clk 0:00:03.3]} 38... Bd7 {[%clk 0:00:07.4]} 39. Be4 {[%clk
0:00:03.5]} 39... Bc6 {[%clk 0:00:07.6]} 40. Bd5 {[%clk 0:00:03.1]} 40... Bxd5
{[%clk 0:00:07.7]} 41. cxd5 {[%clk 0:00:04]} 41... Re7 {[%clk 0:00:08.1]} 42. h5
{[%clk 0:00:04.5]} 42... Kg7 {[%clk 0:00:07.8]} 43. Kf3 {[%clk 0:00:05]} 43...
b5 {[%clk 0:00:07.6]} 44. Rc2 {[%clk 0:00:04.3]} 44... b4 {[%clk 0:00:07.7]} 45.
Kg4 {[%clk 0:00:04.5]} 45... a5 {[%clk 0:00:07.9]} 46. Kf5 {[%clk 0:00:05]}
46... a4 {[%clk 0:00:07.9]} 47. h6+ {[%clk 0:00:05]} 47... Kh7 {[%clk
0:00:08.1]} 48. Bc1 {[%clk 0:00:04.5]} 48... b3 {[%clk 0:00:08.1]} 49. axb3
{[%clk 0:00:05.4]} 49... axb3 {[%clk 0:00:08.9]} 50. Rg2 {[%clk 0:00:06.3]}
50... Bd4 {[%clk 0:00:07.4]} 51. g6+ {[%clk 0:00:06.1]} 51... fxg6+ {[%clk
0:00:07.4]} 52. Rxg6 {[%clk 0:00:05.7]} 52... Re5+ {[%clk 0:00:07.6]} 53. Kf6
{[%clk 0:00:02.4]} 53... Re1+ {[%clk 0:00:07.2]} 0-1

[Event "*** Titled Tuesday Blitz"]
[Site "Chess.com"]
[Date "2020.12.29"]
[Round "5"]
[White "anon481216"]
[Black "Tsyhanchuk_Stanislav"]
[Result "0-1"]
[WhiteElo "2411"]
[BlackElo "2281"]
[TimeControl "180+1"]
[EndTime "10:55:39 PST"]
[Termination "Tsyhanchuk_Stanislav won by resignation"]

1. d4 {[%clk 0:03:00.9]} 1... Nf6 {[%clk 0:02:58]} 2. c4 {[%clk 0:03:00.6]} 2...
e6 {[%clk 0:02:57.1]} 3. Nf3 {[%clk 0:02:59.9]} 3... Bb4+ {[%clk 0:02:55.6]} 4.
Bd2 {[%clk 0:02:59]} 4... Qe7 {[%clk 0:02:56]} 5. g3 {[%clk 0:02:58.6]} 5... b6
{[%clk 0:02:51.9]} 6. Bg2 {[%clk 0:02:53.7]} 6... Bb7 {[%clk 0:02:52.1]} 7. O-O
{[%clk 0:02:49]} 7... Bxd2 {[%clk 0:02:52.6]} 8. Qxd2 {[%clk 0:02:47.9]} 8...
O-O {[%clk 0:02:53.3]} 9. Nc3 {[%clk 0:02:46.5]} 9... d6 {[%clk 0:02:45.5]} 10.
d5 {[%clk 0:02:43.9]} 10... e5 {[%clk 0:02:41.1]} 11. e4 {[%clk 0:02:43.4]}
11... a5 {[%clk 0:02:40.2]} 12. Nh4 {[%clk 0:02:40.9]} 12... g6 {[%clk
0:02:37.1]} 13. Qg5 {[%clk 0:02:30.3]} 13... Kh8 {[%clk 0:02:23]} 14. f4 {[%clk
0:02:26.1]} 14... Nbd7 {[%clk 0:02:17.5]} 15. fxe5 {[%clk 0:02:13.6]} 15... Qxe5
{[%clk 0:02:18.4]} 16. Qxe5 {[%clk 0:02:13.1]} 16... dxe5 {[%clk 0:02:18.7]} 17.
Rf3 {[%clk 0:02:08.2]} 17... Kg7 {[%clk 0:02:16.6]} 18. Raf1 {[%clk 0:02:07.6]}
18... Ba6 {[%clk 0:02:01.8]} 19. b3 {[%clk 0:02:06.6]} 19... Ne8 {[%clk
0:01:45.8]} 20. Bh3 {[%clk 0:02:03.6]} 20... Nc5 {[%clk 0:01:40.9]} 21. Kf2
{[%clk 0:01:51.6]} 21... Nd6 {[%clk 0:01:34]} 22. Ke3 {[%clk 0:01:51.2]} 22...
Bc8 {[%clk 0:00:51.6]} 23. Bxc8 {[%clk 0:01:49.7]} 23... Raxc8 {[%clk
0:00:51.1]} 24. Rf6 {[%clk 0:01:46.6]} 24... Nd7 {[%clk 0:00:45.7]} 25. R6f2
{[%clk 0:01:44.9]} 25... Nc5 {[%clk 0:00:39]} 26. g4 {[%clk 0:01:43.8]} 26... f6
{[%clk 0:00:36.5]} 27. Rg2 {[%clk 0:01:23.9]} 27... h6 {[%clk 0:00:35.6]} 28.
Nf3 {[%clk 0:01:21.5]} 28... Kh7 {[%clk 0:00:26.7]} 29. Nh4 {[%clk 0:01:07.7]}
29... Rce8 {[%clk 0:00:24]} 30. Rgf2 {[%clk 0:01:05.9]} 30... Kg7 {[%clk
0:00:22.2]} 31. Rg2 {[%clk 0:01:05.6]} 31... Kh7 {[%clk 0:00:21.8]} 32. h3
{[%clk 0:01:05.2]} 32... f5 {[%clk 0:00:15.8]} 33. gxf5 {[%clk 0:01:04.7]} 33...
gxf5 {[%clk 0:00:16]} 34. exf5 {[%clk 0:01:03.2]} 34... Rf6 {[%clk 0:00:08.4]}
35. Rfg1 {[%clk 0:00:50.6]} 35... Re7 {[%clk 0:00:05.3]} 36. Rf2 {[%clk
0:00:34]} 36... Ref7 {[%clk 0:00:05.4]} 37. Rgf1 {[%clk 0:00:33.9]} 37... a4
{[%clk 0:00:04.5]} 38. Nxa4 {[%clk 0:00:26.4]} 38... Nxa4 {[%clk 0:00:04.3]} 39.
bxa4 {[%clk 0:00:26.6]} 39... Nxc4+ {[%clk 0:00:05]} 40. Ke4 {[%clk 0:00:26.9]}
40... Nd6+ {[%clk 0:00:04.8]} 41. Kxe5 {[%clk 0:00:23.7]} 41... Nc4+ {[%clk
0:00:05.2]} 42. Kd4 {[%clk 0:00:23.4]} 42... Nd6 {[%clk 0:00:03.7]} 43. Rf4
{[%clk 0:00:20.3]} 43... h5 {[%clk 0:00:03.7]} 44. a5 {[%clk 0:00:18.1]} 44...
bxa5 {[%clk 0:00:02.8]} 45. Kc5 {[%clk 0:00:18.2]} 45... Kh6 {[%clk 0:00:03.1]}
46. a4 {[%clk 0:00:17.6]} 46... Kg5 {[%clk 0:00:03]} 47. Ng2 {[%clk 0:00:16.9]}
47... Nxf5 {[%clk 0:00:02.8]} 48. h4+ {[%clk 0:00:17.2]} 48... Kg6 {[%clk
0:00:02.4]} 49. Rg1 {[%clk 0:00:16]} 49... Nd6 {[%clk 0:00:02.9]} 50. Ne3+
{[%clk 0:00:15.2]} 50... Kh6 {[%clk 0:00:03.3]} 51. Rxf6+ {[%clk 0:00:14.8]}
51... Rxf6 {[%clk 0:00:04.2]} 52. Rg5 {[%clk 0:00:14.2]} 52... Ne4+ {[%clk
0:00:04.1]} 53. Kb5 {[%clk 0:00:13.1]} 53... Nxg5 {[%clk 0:00:05]} 54. hxg5+
{[%clk 0:00:13.4]} 54... Kxg5 {[%clk 0:00:05.9]} 55. Kxa5 {[%clk 0:00:13.8]}
55... h4 {[%clk 0:00:06.4]} 56. Kb5 {[%clk 0:00:13.3]} 56... h3 {[%clk
0:00:06.8]} 57. a5 {[%clk 0:00:13]} 57... h2 {[%clk 0:00:06.6]} 0-1

[Event "*** Titled Tuesday Blitz"]
[Site "Chess.com"]
[Date "2020.12.29"]
[Round "5"]
[White "DenLaz"]
[Black "Geller_Jakov"]
[Result "1/2-1/2"]
[WhiteElo "2815"]
[BlackElo "2617"]
[TimeControl "180+1"]
[EndTime "10:55:40 PST"]
[Termination "Game drawn by repetition"]

1. d4 {[%clk 0:02:58.5]} 1... d5 {[%clk 0:02:59.6]} 2. c4 {[%clk 0:02:57.5]}
2... e6 {[%clk 0:03:00]} 3. Nf3 {[%clk 0:02:57.5]} 3... Nf6 {[%clk 0:03:00.2]}
4. Nc3 {[%clk 0:02:57.4]} 4... dxc4 {[%clk 0:02:59.6]} 5. e4 {[%clk 0:02:57.1]}
5... b5 {[%clk 0:02:59.8]} 6. e5 {[%clk 0:02:57.1]} 6... Nd5 {[%clk 0:02:59.2]}
7. Nxb5 {[%clk 0:02:57.7]} 7... Nb6 {[%clk 0:02:59.8]} 8. Be2 {[%clk 0:02:57.7]}
8... Nc6 {[%clk 0:02:58.7]} 9. O-O {[%clk 0:02:57.2]} 9... Be7 {[%clk 0:02:59]}
10. Qd2 {[%clk 0:02:56.5]} 10... O-O {[%clk 0:02:51.8]} 11. Qf4 {[%clk
0:02:55.1]} 11... Rb8 {[%clk 0:02:46.1]} 12. Nc3 {[%clk 0:02:32.4]} 12... Nb4
{[%clk 0:02:44.1]} 13. Rd1 {[%clk 0:02:23.4]} 13... Bb7 {[%clk 0:02:32.2]} 14.
Qg4 {[%clk 0:02:16.6]} 14... Kh8 {[%clk 0:02:32.1]} 15. h4 {[%clk 0:02:11.2]}
15... Nd3 {[%clk 0:02:02.1]} 16. Bxd3 {[%clk 0:02:09.3]} 16... cxd3 {[%clk
0:02:03]} 17. Rxd3 {[%clk 0:02:09.6]} 17... c5 {[%clk 0:02:02.8]} 18. Bg5 {[%clk
0:02:03.3]} 18... Bxf3 {[%clk 0:01:58.6]} 19. Rxf3 {[%clk 0:01:43.3]} 19... Bxg5
{[%clk 0:01:55.1]} 20. hxg5 {[%clk 0:01:44.2]} 20... Qxd4 {[%clk 0:01:54.7]} 21.
Qh5 {[%clk 0:01:41.3]} 21... Qxe5 {[%clk 0:01:53.8]} 22. g4 {[%clk 0:01:25.1]}
22... Nd5 {[%clk 0:01:17.4]} 23. Nxd5 {[%clk 0:00:55.9]} 23... exd5 {[%clk
0:01:15.6]} 24. Kg2 {[%clk 0:00:47.8]} 24... g6 {[%clk 0:00:56.9]} 25. Qh4
{[%clk 0:00:42.3]} 25... Rb4 {[%clk 0:00:41.5]} 26. Rh1 {[%clk 0:00:22.1]} 26...
h5 {[%clk 0:00:40.9]} 27. gxh6 {[%clk 0:00:22.7]} 27... Kh7 {[%clk 0:00:38.2]}
28. b3 {[%clk 0:00:19.7]} 28... f5 {[%clk 0:00:31.9]} 29. Re3 {[%clk 0:00:17.2]}
29... Qxe3 {[%clk 0:00:27.4]} 30. fxe3 {[%clk 0:00:17.5]} 30... Rxg4+ {[%clk
0:00:28]} 31. Qxg4 {[%clk 0:00:18]} 31... fxg4 {[%clk 0:00:28.9]} 32. Rd1 {[%clk
0:00:18.7]} 32... Rf5 {[%clk 0:00:27.4]} 33. Kg3 {[%clk 0:00:15.4]} 33... Kxh6
{[%clk 0:00:25.6]} 34. Kxg4 {[%clk 0:00:15.8]} 34... Re5 {[%clk 0:00:25.7]} 35.
Kf4 {[%clk 0:00:15.6]} 35... Rf5+ {[%clk 0:00:25.8]} 36. Kg4 {[%clk 0:00:16.1]}
36... c4 {[%clk 0:00:18]} 37. Rc1 {[%clk 0:00:10.5]} 37... cxb3 {[%clk
0:00:16.2]} 38. axb3 {[%clk 0:00:11.4]} 38... Re5 {[%clk 0:00:16.5]} 39. Kf3
{[%clk 0:00:11.2]} 39... Re7 {[%clk 0:00:13.8]} 40. Rd1 {[%clk 0:00:09.9]} 40...
Rb7 {[%clk 0:00:12.7]} 41. Rxd5 {[%clk 0:00:07.4]} 41... Rxb3 {[%clk 0:00:13.3]}
42. Ra5 {[%clk 0:00:08.1]} 42... Rb7 {[%clk 0:00:13.3]} 43. e4 {[%clk
0:00:08.8]} 43... Rf7+ {[%clk 0:00:11.9]} 44. Kg4 {[%clk 0:00:08.9]} 44... Re7
{[%clk 0:00:12]} 45. e5 {[%clk 0:00:09.4]} 45... Rb7 {[%clk 0:00:11]} 46. e6
{[%clk 0:00:06.9]} 46... Kg7 {[%clk 0:00:10.8]} 47. Kg5 {[%clk 0:00:07.4]} 47...
Rc7 {[%clk 0:00:09.6]} 48. Ra6 {[%clk 0:00:06.3]} 48... Kf8 {[%clk 0:00:08.5]}
49. Kf6 {[%clk 0:00:05.3]} 49... Rc1 {[%clk 0:00:09.1]} 50. Rxa7 {[%clk
0:00:03.2]} 50... Rf1+ {[%clk 0:00:08.7]} 51. Ke5 {[%clk 0:00:03.2]} 51... Ke8
{[%clk 0:00:09.4]} 52. Rg7 {[%clk 0:00:02.4]} 52... Re1+ {[%clk 0:00:09.1]} 53.
Kf6 {[%clk 0:00:02.9]} 53... Rf1+ {[%clk 0:00:09.5]} 54. Kg5 {[%clk 0:00:03.3]}
54... Rg1+ {[%clk 0:00:09.4]} 55. Kf6 {[%clk 0:00:03.9]} 55... Rf1+ {[%clk
0:00:10]} 56. Ke5 {[%clk 0:00:04.8]} 56... Re1+ {[%clk 0:00:10.3]} 57. Kd5
{[%clk 0:00:05.7]} 57... Rd1+ {[%clk 0:00:10.8]} 58. Ke5 {[%clk 0:00:05.8]}
58... Re1+ {[%clk 0:00:11.3]} 1/2-1/2